fUST/lending_fUST_20260617
["ID","MTS","AMOUNT","RATE_DAILY","PERIOD"]
[425299694,1781667044000,-4850.09006933,0.00016986,2]
[425299718,1781667046000,-491.92488302,0.00016438,2]
[425300309,1781668220000,1000.0,0.00024658,120]
[425300320,1781668232000,-487.0,0.00014515,2]
[425300318,1781668232000,-224.56760295,0.00013326,2]
[425300321,1781668232000,-464.74659279,0.00014515,2]
[425300319,1781668232000,-487.0,0.00014515,2]
[425300342,1781668236000,386.07,0.00023363,30]
[425300351,1781668238000,-428.99675928,0.00014515,2]
[425300348,1781668238000,-22.25340721,0.00014515,2]
[425300350,1781668238000,-487.0,0.00014515,2]
[425300692,1781668357000,1000.0,0.00024658,120]
[425300693,1781668369000,151.0,0.00013002,2]
[425300694,1781668381000,500.0,0.00015,90]
[425300696,1781668422000,500.0,0.00015,90]
[425300713,1781668761000,1998.5,0.00024658,120]
[425300715,1781668794000,5.35406855,0.00013326,2]
[425300718,1781668872000,-994.64593145,0.00013326,2]
[425300719,1781668889000,-151.0,0.00014477,2]
[425300720,1781668906000,-500.0,0.00014477,2]
[425300721,1781668923000,-500.0,0.00014477,2]
[425300722,1781668940000,-354.2143101,0.00014563,2]
[425300723,1781668956000,-152.0,0.00014848,7]
[425300727,1781669330000,3613.93,0.00024658,120]
[425300842,1781669446000,-168.594783,0.000158,2]
[425300841,1781669446000,-179.405217,0.00015134,2]
[425300840,1781669446000,-152.0,0.00014848,7]
[425300867,1781670197000,643.9736503,0.00023361,30]
[425301003,1781670638000,-500.0,0.00014362,2]
[425301000,1781670638000,-500.0,0.00014362,2]
[425300998,1781670638000,-500.0,0.00014362,2]
[425300999,1781670638000,-500.0,0.00014362,2]
[425301005,1781670638000,-775.4839697,0.00014362,2]
[425300995,1781670638000,-1019.05,0.00013667,9]
[425301006,1781670638000,-188.8130784,0.00014604,2]
[425301001,1781670638000,-500.0,0.00014362,2]
[425300997,1781670638000,-500.0,0.00014362,2]
[425300996,1781670638000,-2956.72140703,0.00013805,9]
[425301002,1781670638000,-500.0,0.00014362,2]
[425301004,1781670638000,-500.0,0.00014362,2]
[425301014,1781670638000,-500.0,0.00015834,2]
[425301009,1781670638000,-545.83133829,0.00015757,2]
[425301007,1781670638000,-179.405217,0.00015068,2]
[425301020,1781670638000,-500.0,0.00015834,2]
[425301018,1781670638000,-500.0,0.00015834,2]
[425301016,1781670638000,-500.0,0.00015834,2]
[425301017,1781670638000,-645.91136426,0.00015834,2]
[425301019,1781670638000,-500.0,0.00015834,2]
[425301011,1781670638000,-545.83133829,0.00015815,2]
[425301013,1781670638000,-283.71173278,0.00015834,2]
[425301012,1781670638000,-500.0,0.00015834,2]
[425301010,1781670638000,-1008.66,0.000158,3]
[425301008,1781670638000,-300.0,0.00015117,2]
[425301015,1781670638000,-500.0,0.00015834,2]
[425301029,1781670639000,-500.0,0.00015834,2]
[425301034,1781670639000,-1380.22143595,0.00015835,2]
[425301038,1781670639000,-1380.22143595,0.00015835,2]
[425301039,1781670639000,-1380.22143595,0.00015835,2]
[425301036,1781670639000,-1380.22143595,0.00015835,2]
[425301035,1781670639000,-1380.22143595,0.00015835,2]
[425301030,1781670639000,-500.0,0.00015834,2]
[425301031,1781670639000,-519.68100599,0.00015835,2]
[425301022,1781670639000,-500.0,0.00015834,2]
[425301026,1781670639000,-500.0,0.00015834,2]
[425301025,1781670639000,-500.0,0.00015834,2]
[425301024,1781670639000,-368.08594768,0.00015834,2]
[425301023,1781670639000,-500.0,0.00015834,2]
[425301021,1781670639000,-500.0,0.00015834,2]
[425301027,1781670639000,-500.0,0.00015834,2]
[425301032,1781670639000,-1380.22143595,0.00015835,2]
[425301028,1781670639000,-500.0,0.00015834,2]
[425301043,1781670639000,-1380.22143595,0.00015835,2]
[425301051,1781670639000,-1380.22143594,0.00015835,2]
[425301044,1781670639000,-1380.22143595,0.00015835,2]
[425301057,1781670639000,-2484.39858475,0.00015835,2]
[425301056,1781670639000,-1380.22143594,0.00015835,2]
[425301054,1781670639000,-1380.22143594,0.00015835,2]
[425301055,1781670639000,-1380.22143594,0.00015835,2]
[425301059,1781670639000,-8162.31751055,0.00015836,2]
[425301053,1781670639000,-1380.22143594,0.00015835,2]
[425301052,1781670639000,-1380.22143594,0.00015835,2]
[425301058,1781670639000,-971.68703416,0.00015836,2]
[425301050,1781670639000,-1380.22143594,0.00015835,2]
[425301048,1781670639000,-1380.22143594,0.00015835,2]
[425301047,1781670639000,-1380.22143594,0.00015835,2]
[425301045,1781670639000,-1380.22143595,0.00015835,2]
[425301046,1781670639000,-1380.22143594,0.00015835,2]
[425301042,1781670639000,-1380.22143595,0.00015835,2]
[425301041,1781670639000,-1380.22143595,0.00015835,2]
[425301037,1781670639000,-1380.22143595,0.00015835,2]
[425301049,1781670639000,-1380.22143594,0.00015835,2]
[425301040,1781670639000,-1380.22143595,0.00015835,2]
[425301193,1781670643000,-351.41676919,0.00015836,2]
[425301201,1781670646000,-1051.54645395,0.00015735,2]
[425301202,1781670646000,-2956.72140703,0.00015735,2]
[425301208,1781671097000,174.4954682,0.00023361,30]
[425301286,1781671832000,-317.963246,0.00014563,2]
[425301284,1781671832000,-192.72500272,0.00014512,7]
[425301283,1781671832000,-154.0,0.00014365,7]
[425301282,1781671832000,-2108.0366443,0.00014291,2]
[425301281,1781671832000,-1465.37971603,0.00014291,2]
[425301280,1781671832000,-937.84301826,0.00014291,2]
[425301276,1781671832000,-1000.0,0.00013946,2]
[425301278,1781671832000,-293.07594321,0.00014291,2]
[425301277,1781671832000,-154.0,0.00014083,7]
[425301275,1781671832000,-647.8974748,0.00013803,2]
[425301274,1781671832000,-5000.0,0.00013664,9]
[425301285,1781671832000,-317.963246,0.00014563,2]
[425301279,1781671832000,-527.53669777,0.00014291,2]
[425301287,1781671832000,-317.963246,0.00014563,2]
[425301288,1781671832000,-317.963246,0.00014563,2]
[425301300,1781671832000,-1452.66094668,0.00014563,2]
[425301301,1781671832000,-213.26156561,0.00014563,2]
[425301302,1781671832000,-1070.62533991,0.00014563,2]
[425301297,1781671832000,-317.963246,0.00014563,2]
[425301294,1781671832000,-317.963246,0.00014563,2]
[425301295,1781671832000,-317.963246,0.00014563,2]
[425301296,1781671832000,-317.963246,0.00014563,2]
[425301293,1781671832000,-317.963246,0.00014563,2]
[425301298,1781671832000,-453.95654584,0.00014563,2]
[425301291,1781671832000,-80.93864635,0.00014563,2]
[425301290,1781671832000,-237.02459965,0.00014563,2]
[425301299,1781671832000,-817.12178251,0.00014563,2]
[425301292,1781671832000,-317.963246,0.00014563,2]
[425301289,1781671832000,-317.963246,0.00014563,2]
[425301322,1781671839000,-317.963246,0.00015329,2]
[425301328,1781671839000,-528.707088,0.0001533,2]
[425301323,1781671839000,-317.963246,0.00015329,2]
[425301326,1781671839000,-317.963246,0.00015329,2]
[425301327,1781671839000,-317.963236,0.00015329,2]
[425301325,1781671839000,-317.963246,0.00015329,2]
[425301324,1781671839000,-317.963246,0.00015329,2]
[425301321,1781671839000,-317.963246,0.00015329,2]
[425301318,1781671839000,-4481.4240999,0.0001523,2]
[425301316,1781671839000,-154.0,0.0001521,7]
[425301329,1781671839000,-528.707088,0.0001533,2]
[425301319,1781671839000,-281.10835147,0.0001523,2]
[425301314,1781671839000,-154.0,0.00014787,7]
[425301313,1781671839000,-4444.32537507,0.00014563,2]
[425301315,1781671839000,-155.98688134,0.00014942,2]
[425301312,1781671839000,-3268.48713004,0.00014563,2]
[425301317,1781671839000,-189.114,0.00015225,2]
[425301311,1781671839000,-985.89582367,0.00014563,2]
[425301320,1781671839000,-317.963246,0.00015329,2]
[425301330,1781671839000,-528.707088,0.0001533,2]
[425301344,1781671839000,-150.97041681,0.0001533,2]
[425301332,1781671839000,-528.707088,0.0001533,2]
[425301349,1781671839000,-519.80140612,0.00015533,2]
[425301350,1781671839000,-737682.28878876,0.00015535,2]
[425301351,1781671839000,-330.175,0.00015535,2]
[425301345,1781671839000,-289.08750412,0.00015365,7]
[425301348,1781671839000,-265.0,0.00015526,3]
[425301347,1781671839000,-530.01,0.00015526,3]
[425301346,1781671839000,-795.03,0.00015525,3]
[425301343,1781671839000,-263.51,0.0001533,2]
[425301339,1781671839000,-528.707088,0.0001533,2]
[425301341,1781671839000,-151.0,0.0001533,2]
[425301338,1781671839000,-528.707088,0.0001533,2]
[425301337,1781671839000,-528.707088,0.0001533,2]
[425301336,1781671839000,-528.707088,0.0001533,2]
[425301333,1781671839000,-528.707088,0.0001533,2]
[425301331,1781671839000,-528.707088,0.0001533,2]
[425301335,1781671839000,-528.707088,0.0001533,2]
[425301334,1781671839000,-528.707088,0.0001533,2]
[425301340,1781671839000,-151.0,0.0001533,2]
[425301342,1781671839000,-151.0,0.0001533,2]
[425301370,1781671847000,-2165.63400525,0.00015535,2]
[425301508,1781672031000,8194.21,0.00023397,120]
[425301517,1781672287000,-1082.57453669,9.9e-05,9]
[425301518,1781672288000,-266.58174353,9.9e-05,9]
[425301522,1781672484000,10000.0,0.00023413,30]
[425301541,1781672826000,-151.0,9.51e-05,9]
[425301543,1781672827000,-151.0,9.51e-05,9]
[425301542,1781672827000,-151.0,9.51e-05,9]
[425301544,1781672828000,-151.0,9.51e-05,9]
[425301545,1781672829000,-151.0,9.51e-05,9]
[425301547,1781672837000,-151.0,9.51e-05,9]
[425301546,1781672837000,-151.0,9.51e-05,9]
[425301548,1781672845000,-151.0,9.51e-05,9]
[425301549,1781672846000,-151.0,9.51e-05,9]
[425301550,1781672847000,-151.0,9.51e-05,9]
[425301666,1781673032000,-171.73860165,0.00010291,7]
[425301651,1781673032000,-56.64596998,9.801e-05,7]
[425301656,1781673032000,-115.09263167,9.801e-05,7]
[425301658,1781673032000,-562.68477626,9.9e-05,2]
[425301662,1781673032000,-129.02335224,9.997e-05,7]
[425301660,1781673032000,-42.71524941,9.997e-05,7]
[425301664,1781673032000,-601.55347722,0.0001,2]
[425301650,1781673032000,-5000.0,9.801e-05,2]
[425301668,1781673032000,-171.73860165,0.00010585,7]
[425301648,1781673032000,-151.0,9.703e-05,2]
[425301671,1781673032000,-156.0,0.00013294,2]
[425301672,1781673032000,-221.13245884,0.00013502,2]
[425301682,1781673032000,-203.62623503,0.00014291,2]
[425301680,1781673032000,-135.22117042,0.00014291,2]
[425301678,1781673032000,-185.21685835,0.00014083,7]
[425301681,1781673032000,-229.83187504,0.00014291,2]
[425301676,1781673032000,-153.61510959,0.00013919,2]
[425301675,1781673032000,-476.8914962,0.00013567,2]
[425301673,1781673032000,-153.61510959,0.00013502,2]
[425301670,1781673032000,-171.73860168,0.00010977,7]
[425301679,1781673032000,-217.646858,0.00014163,2]
[425301721,1781673038000,-500.0,0.00014812,2]
[425301713,1781673038000,-500.0,0.00014812,2]
[425301714,1781673038000,-500.0,0.00014812,2]
[425301716,1781673038000,-500.0,0.00014812,2]
[425301717,1781673038000,-500.0,0.00014812,2]
[425301718,1781673038000,-500.0,0.00014812,2]
[425301720,1781673038000,-500.0,0.00014812,2]
[425301728,1781673038000,-151.5,0.00014812,2]
[425301723,1781673038000,-480.92861294,0.00014812,2]
[425301719,1781673038000,-500.0,0.00014812,2]
[425301724,1781673038000,-500.0,0.00014812,2]
[425301727,1781673038000,-588.39902332,0.00014812,2]
[425301725,1781673038000,-500.0,0.00014812,2]
[425301726,1781673038000,-643.41386458,0.00014812,2]
[425301729,1781673038000,-1081.0,0.00014812,2]
[425301722,1781673038000,-500.0,0.00014812,2]
[425301712,1781673038000,-500.0,0.00014812,2]
[425301708,1781673038000,-500.0,0.00014812,2]
[425301705,1781673038000,-185.21685835,0.00014787,7]
[425301695,1781673038000,-185.21685835,0.00014365,7]
[425301694,1781673038000,-165.48066033,0.00014291,2]
[425301696,1781673038000,-500.0,0.00014563,2]
[425301697,1781673038000,-600.5027159,0.00014563,2]
[425301698,1781673038000,-437.59750081,0.000147,2]
[425301699,1781673038000,-502.93718287,0.000147,2]
[425301702,1781673038000,-530.4955302,0.000147,2]
[425301711,1781673038000,-500.0,0.00014812,2]
[425301701,1781673038000,-527.57412683,0.000147,2]
[425301703,1781673038000,-4069.92663145,0.00014713,2]
[425301707,1781673038000,-500.0,0.00014812,2]
[425301704,1781673038000,-217.646858,0.0001476,2]
[425301709,1781673038000,-500.0,0.00014812,2]
[425301731,1781673038000,-1081.0,0.00014812,2]
[425301710,1781673038000,-500.0,0.00014812,2]
[425301706,1781673038000,-500.0,0.00014812,2]
[425301700,1781673038000,-515.25565481,0.000147,2]
[425301730,1781673038000,-1081.0,0.00014812,2]
[425301715,1781673038000,-586.264576,0.00014812,2]
[425301733,1781673038000,-1081.0,0.00014812,2]
[425301760,1781673038000,-151.5,0.00014812,2]
[425301758,1781673038000,-500.0,0.00014812,2]
[425301759,1781673038000,-400.71599781,0.00014812,2]
[425301757,1781673038000,-500.0,0.00014812,2]
[425301755,1781673038000,-500.0,0.00014812,2]
[425301753,1781673038000,-500.0,0.00014812,2]
[425301762,1781673038000,-1081.0,0.00014812,2]
[425301756,1781673038000,-1081.0,0.00014812,2]
[425301765,1781673038000,-500.0,0.00014813,2]
[425301763,1781673038000,-1081.0,0.00014812,2]
[425301764,1781673038000,-1089.1353155,0.00014812,2]
[425301766,1781673038000,-500.0,0.00014813,2]
[425301770,1781673038000,-500.0,0.00014813,2]
[425301767,1781673038000,-500.0,0.00014813,2]
[425301768,1781673038000,-500.0,0.00014813,2]
[425301769,1781673038000,-500.0,0.00014813,2]
[425301761,1781673038000,-302.92033071,0.00014812,2]
[425301754,1781673038000,-500.0,0.00014812,2]
[425301751,1781673038000,-500.0,0.00014812,2]
[425301749,1781673038000,-500.0,0.00014812,2]
[425301735,1781673038000,-1081.0,0.00014812,2]
[425301736,1781673038000,-1081.0,0.00014812,2]
[425301734,1781673038000,-1081.0,0.00014812,2]
[425301737,1781673038000,-1081.0,0.00014812,2]
[425301739,1781673038000,-1081.0,0.00014812,2]
[425301738,1781673038000,-1081.0,0.00014812,2]
[425301741,1781673038000,-1081.0,0.00014812,2]
[425301740,1781673038000,-1081.0,0.00014812,2]
[425301743,1781673038000,-1081.0,0.00014812,2]
[425301742,1781673038000,-1081.0,0.00014812,2]
[425301744,1781673038000,-1081.0,0.00014812,2]
[425301745,1781673038000,-1081.0,0.00014812,2]
[425301746,1781673038000,-1081.0,0.00014812,2]
[425301747,1781673038000,-1081.0,0.00014812,2]
[425301750,1781673038000,-500.0,0.00014812,2]
[425301752,1781673038000,-500.0,0.00014812,2]
[425301748,1781673038000,-1081.0,0.00014812,2]
[425301732,1781673038000,-1081.0,0.00014812,2]
[425301772,1781673039000,-500.0,0.00014813,2]
[425301773,1781673039000,-267.4775567,0.00014813,2]
[425301774,1781673039000,-1006277.13957958,0.00014887,2]
[425301775,1781673039000,-500.0,0.00014887,2]
[425301771,1781673039000,-500.0,0.00014813,2]
[425301783,1781673040000,-1246.85715906,0.00014887,2]
[425301782,1781673040000,-378.30134153,0.00014887,2]
[425301781,1781673040000,-555.10167904,0.00014887,2]
[425301810,1781673046000,-1286.29485963,0.00014738,2]
[425301812,1781673046000,-990.97160911,0.00014738,2]
[425301811,1781673046000,-842.0,0.00014738,2]
[425301813,1781673046000,-665.35736195,0.00014887,2]
[425301814,1781673046000,-2383.56002504,0.00014887,2]
[425301826,1781673803000,170.871439,0.00013323,120]
[425302235,1781674238000,-500.0,0.00014508,2]
[425302224,1781674238000,-500.0,0.00014508,2]
[425302253,1781674238000,-500.0,0.00014508,2]
[425302239,1781674238000,-500.0,0.00014508,2]
[425302231,1781674238000,-500.0,0.00014508,2]
[425302237,1781674238000,-500.0,0.00014508,2]
[425302245,1781674238000,-500.0,0.00014508,2]
[425302241,1781674238000,-500.0,0.00014508,2]
[425302243,1781674238000,-500.0,0.00014508,2]
[425302247,1781674238000,-500.0,0.00014508,2]
[425302227,1781674238000,-500.0,0.00014508,2]
[425302251,1781674238000,-500.0,0.00014508,2]
[425302249,1781674238000,-500.0,0.00014508,2]
[425302233,1781674238000,-500.0,0.00014508,2]
[425302219,1781674238000,-502.47689471,0.00014508,2]
[425302210,1781674238000,-11293.7585108,0.00013582,2]
[425302212,1781674238000,-167.85,0.00014111,2]
[425302198,1781674238000,-215.88,0.00012329,2]
[425302199,1781674238000,-179.9,0.00012329,2]
[425302188,1781674238000,-151.0,0.00011959,2]
[425302190,1781674238000,-300.0,0.00012328,2]
[425302192,1781674238000,-373.04,0.00012329,2]
[425302196,1781674238000,-259.05,0.00012329,2]
[425302221,1781674238000,-500.0,0.00014508,2]
[425302194,1781674238000,-310.86,0.00012329,2]
[425302204,1781674238000,-1380.7556791,0.00012942,2]
[425302201,1781674238000,-899.52,0.00012329,2]
[425302208,1781674238000,-170.871439,0.00013323,2]
[425302217,1781674238000,-6774.23552171,0.00014408,2]
[425302216,1781674238000,-210.6139152,0.00014408,2]
[425302214,1781674238000,-426.809388,0.00014168,2]
[425302206,1781674238000,-2123.6525709,0.00013079,2]
[425302255,1781674238000,-500.0,0.00014508,2]
[425302229,1781674238000,-281.5049713,0.00014508,2]
[425302259,1781674238000,-2380.91882179,0.00014508,2]
[425302305,1781674238000,-2380.91882179,0.00014508,2]
[425302307,1781674238000,-3598.48355415,0.00014508,2]
[425302296,1781674238000,-2380.91882179,0.00014508,2]
[425302298,1781674238000,-2380.91882179,0.00014508,2]
[425302302,1781674238000,-2380.91882179,0.00014508,2]
[425302301,1781674238000,-2380.91882179,0.00014508,2]
[425302294,1781674238000,-2380.91882179,0.00014508,2]
[425302308,1781674238000,-3598.48355415,0.00014508,2]
[425302312,1781674238000,-3598.48355415,0.00014508,2]
[425302317,1781674238000,-3598.48355415,0.00014508,2]
[425302314,1781674238000,-3598.48355415,0.00014508,2]
[425302319,1781674238000,-3598.48355415,0.00014508,2]
[425302320,1781674238000,-3598.48355415,0.00014508,2]
[425302323,1781674238000,-182.684,0.00014509,2]
[425302310,1781674238000,-3598.48355415,0.00014508,2]
[425302325,1781674238000,-685859.89351518,0.0001451,2]
[425302286,1781674238000,-2380.91882179,0.00014508,2]
[425302292,1781674238000,-2380.91882179,0.00014508,2]
[425302261,1781674238000,-2380.91882179,0.00014508,2]
[425302265,1781674238000,-2380.91882179,0.00014508,2]
[425302263,1781674238000,-363.86098428,0.00014508,2]
[425302280,1781674238000,-2380.91882179,0.00014508,2]
[425302266,1781674238000,-2380.91882179,0.00014508,2]
[425302268,1781674238000,-2380.91882179,0.00014508,2]
[425302290,1781674238000,-2380.91882179,0.00014508,2]
[425302278,1781674238000,-2380.91882179,0.00014508,2]
[425302276,1781674238000,-2380.91882179,0.00014508,2]
[425302274,1781674238000,-2380.91882179,0.00014508,2]
[425302270,1781674238000,-2380.91882179,0.00014508,2]
[425302282,1781674238000,-2380.91882179,0.00014508,2]
[425302284,1781674238000,-2380.91882179,0.00014508,2]
[425302288,1781674238000,-2380.91882179,0.00014508,2]
[425302272,1781674238000,-2380.91882179,0.00014508,2]
[425302257,1781674238000,-500.0,0.00014508,2]
[425302565,1781674240000,-1862.176341,0.00014507,2]
[425302566,1781674240000,-336.61165888,0.0001451,2]
[425302587,1781674243000,-6790.46515608,0.0001451,2]
[425302581,1781674243000,-1862.176341,0.00014507,2]
[425302584,1781674243000,-7899.83401473,0.0001451,2]
[425302583,1781674243000,-10913.024636,0.0001451,2]
[425302582,1781674243000,-1862.176341,0.00014507,2]
[425302578,1781674243000,-3580.0,0.00014363,2]
[425302580,1781674243000,-1862.176341,0.00014507,2]
[425302577,1781674243000,-1420.0,0.00014363,2]
[425302579,1781674243000,-1862.176341,0.00014507,2]
[425302593,1781674246000,-60016.26393147,0.0001451,2]
[425302594,1781674246000,-280.2939363,0.0001451,2]
[425302708,1781675440000,-580.51992883,0.00013576,2]
[425302706,1781675440000,-271.72,0.00013575,2]
[425302710,1781675440000,-1612.55535786,0.00013576,2]
[425302707,1781675440000,-322.51107157,0.00013576,2]
[425302709,1781675440000,-1032.03542903,0.00013576,2]
[425302705,1781675440000,-185.608954,0.00013507,2]
[425302700,1781675440000,-185.40252947,0.00013436,2]
[425302703,1781675440000,-926.08563471,0.00013436,2]
[425302701,1781675440000,-333.72455305,0.00013436,2]
[425302699,1781675440000,-1121.23885096,0.00012252,2]
[425302696,1781675440000,-404.05003638,0.00012252,2]
[425302702,1781675440000,-593.28809431,0.00013436,2]
[425302692,1781675440000,-762.40148529,0.00012252,2]
[425302693,1781675440000,-1355.38041829,0.00012252,2]
[425302694,1781675440000,-2115.66412167,0.00012252,2]
[425302697,1781675440000,-718.31117579,0.00012252,2]
[425302695,1781675440000,-224.47224243,0.00012252,2]
[425302690,1781675440000,-3492.75261647,0.0001213,2]
[425302691,1781675440000,-423.55638071,0.00012252,2]
[425302711,1781675440000,-2319.7576356,0.00013576,2]
[425302704,1781675440000,-1255.1269476,0.00013459,2]
[425302717,1781675440000,-500.0,0.00014407,2]
[425302716,1781675440000,-500.0,0.00014407,2]
[425302741,1781675440000,-193630.04680806,0.00014587,2]
[425302713,1781675440000,-166.77,0.00013967,2]
[425302739,1781675440000,-158.19674602,0.0001451,2]
[425302737,1781675440000,-151.0,0.0001451,2]
[425302740,1781675440000,-248181.88804786,0.00014587,2]
[425302736,1781675440000,-320.78,0.00014509,2]
[425302735,1781675440000,-500.0,0.00014509,2]
[425302732,1781675440000,-500.0,0.00014509,2]
[425302733,1781675440000,-500.0,0.00014509,2]
[425302734,1781675440000,-500.0,0.00014509,2]
[425302731,1781675440000,-500.0,0.00014509,2]
[425302738,1781675440000,-153.15223362,0.0001451,2]
[425302730,1781675440000,-500.0,0.00014507,2]
[425302720,1781675440000,-500.0,0.00014507,2]
[425302718,1781675440000,-500.0,0.00014507,2]
[425302728,1781675440000,-500.0,0.00014507,2]
[425302722,1781675440000,-500.0,0.00014507,2]
[425302726,1781675440000,-500.0,0.00014507,2]
[425302724,1781675440000,-509.61016611,0.00014507,2]
[425302715,1781675440000,-189.8954589,0.00014342,2]
[425302712,1781675440000,-278.8884527,0.00013754,2]
[425302714,1781675440000,-500.0,0.00014289,2]
[425302729,1781675440000,-500.0,0.00014507,2]
[425302997,1781675443000,-2655.74493537,0.00014587,2]
[425302996,1781675443000,-28674.10689888,0.00014587,2]
[425303009,1781675446000,-18477.18090757,0.00014587,2]
[425303007,1781675446000,-13101.84824908,0.00014587,2]
[425303014,1781675867000,621.09618278,8.6e-05,2]
[425303059,1781676632000,-3307.53196674,0.00012818,2]
[425303060,1781676632000,-1301.80931151,0.00012948,2]
[425303066,1781676641000,-639.05146339,0.00012948,2]
[425303068,1781676641000,-321.02835979,0.00013368,2]
[425303067,1781676641000,-3950.414655,0.00013227,2]
[425303070,1781676641000,-300.0,0.00013634,2]
[425303069,1781676641000,-366.52266449,0.00013368,2]
[425303073,1781676641000,-392.48746039,0.00014071,2]
[425303076,1781676641000,-1962.43730198,0.00014071,2]
[425303075,1781676641000,-1255.95987326,0.00014071,2]
[425303072,1781676641000,-174.899,0.00014,2]
[425303074,1781676641000,-706.47742871,0.00014071,2]
[425303071,1781676641000,-500.0,0.00013698,2]
[425303079,1781676641000,-3961.00959386,0.00014072,2]
[425303085,1781676641000,-23008.552425,0.00014185,2]
[425303078,1781676641000,-3842.53073476,0.00014071,2]
[425303080,1781676641000,-355.39920405,0.000141,2]
[425303090,1781676641000,-3304.09692159,0.00014185,2]
[425303089,1781676641000,-3292.14864933,0.00014185,2]
[425303088,1781676641000,-364.124706,0.00014185,2]
[425303086,1781676641000,-498652.82639702,0.00014185,2]
[425303084,1781676641000,-500.0,0.00014142,2]
[425303083,1781676641000,-410.09355728,0.000141,2]
[425303082,1781676641000,-398.78880453,0.000141,2]
[425303081,1781676641000,-394.05385123,0.000141,2]
[425303077,1781676641000,-2825.90971484,0.00014071,2]
[425303087,1781676641000,-2726.82,0.00014185,2]
[425303098,1781676643000,-255.65553878,0.00014185,2]
[425303097,1781676643000,-15666.28486741,0.00014185,2]
[425303099,1781676643000,-903.19006073,0.00014185,2]
[425303109,1781676646000,-304.0,0.00014185,2]
[425303108,1781676646000,-261.19643891,0.00014185,2]
[425303619,1781677835000,-726.1357568,0.00013015,2]
[425303620,1781677835000,-289.44605481,0.00013093,2]
[425303622,1781677835000,-516.35108706,0.00013093,2]
[425303621,1781677835000,-330.79549121,0.00013093,2]
[425303618,1781677835000,-212.5,0.0001,2]
[425303623,1781677835000,-402.90095521,0.00013093,2]
[425303626,1781677835000,-75.99619694,0.00013285,2]
[425303625,1781677835000,-352.53833581,0.00013093,2]
[425303624,1781677835000,-628.90320978,0.00013093,2]
[425303627,1781677835000,-433.45811007,0.00013285,2]
[425303646,1781677840000,-3140.31522021,0.00013285,2]
[425303647,1781677840000,-4460.82942215,0.00013385,2]
[425303651,1781677840000,-81.75181783,0.00013983,2]
[425303648,1781677840000,-169.061,0.00013802,2]
[425303650,1781677840000,-254.702689,0.00013983,2]
[425303649,1781677840000,-8550.26175464,0.00013883,2]
[425303705,1781677841000,-1769.06752395,0.00013983,2]
[425303707,1781677841000,-1769.06752395,0.00013983,2]
[425303703,1781677841000,-1687.31570612,0.00013983,2]
[425303717,1781677841000,-1769.06752395,0.00013983,2]
[425303709,1781677841000,-845.62634946,0.00013983,2]
[425303716,1781677841000,-473.16979415,0.00013983,2]
[425303713,1781677841000,-450.27138034,0.00013983,2]
[425303737,1781677841000,-446.08294221,0.00013183,2]
[425303739,1781677841000,-340.80102794,0.00013983,2]
[425303719,1781677841000,-859.4739337,0.00013983,2]
[425303788,1781677843000,-364.97695272,0.00012585,2]
[425303789,1781677843000,-568.79256231,0.00013983,2]
[425303790,1781677843000,-1769.06752395,0.00013983,2]
[425303791,1781677843000,-1225.77243574,0.00013983,2]
[425303796,1781677843000,-475.72277459,0.00013983,2]
[425303794,1781677843000,-500.0,0.00013983,2]
[425303792,1781677843000,-543.29508821,0.00013983,2]
[425303795,1781677843000,-1769.06752395,0.00013983,2]
[425303797,1781677843000,-1209.87019264,0.00013983,2]
[425303793,1781677843000,-1769.06752395,0.00013983,2]
[425303804,1781677844000,-1405.02603151,0.00013983,2]
[425303809,1781677844000,-1769.06752395,0.00013983,2]
[425303801,1781677844000,-1769.06752395,0.00013983,2]
[425303802,1781677844000,-1769.06752395,0.00013983,2]
[425303806,1781677844000,-364.04149244,0.00013983,2]
[425303799,1781677844000,-559.19733131,0.00013983,2]